fUSD/lending_fUSD_20250213
["ID","MTS","AMOUNT","RATE_DAILY","PERIOD"]
[352957052,1739460633462,-500.0,0.00013995,2]
[352957053,1739460633473,-500.0,0.00013995,2]
[352957054,1739460633483,-1455.15,0.00013995,2]
[352957055,1739460633493,-821.42,0.00013995,2]
[352957056,1739460633502,-500.0,0.00013995,2]
[352957057,1739460633513,-500.0,0.00013995,2]
[352957058,1739460633523,-500.0,0.00013995,2]
[352957059,1739460633533,-5084.29,0.00013995,2]
[352957060,1739460633544,-783.23,0.00013995,2]
[352957061,1739460633554,-2707.53,0.00013995,2]
[352957062,1739460633564,-1931.48,0.00013995,2]
[352957063,1739460633574,-503.04734901,0.00013995,2]
[352957064,1739460633584,-2204.78,0.00013995,2]
[352957065,1739460633594,-949.66,0.00013995,2]
[352957066,1739460633604,-189.55776897,0.00013996,2]
[352957067,1739460633617,-500.0,0.00013996,2]
[352957068,1739460633627,-500.0,0.00013996,2]
[352957069,1739460633637,-500.0,0.00013996,2]
[352957070,1739460633647,-426.79709903,0.00013996,2]
[352957071,1739460633658,-546.8312966,0.00013996,2]
[352957072,1739460633669,-175.25457586,0.00013996,2]
[352957073,1739460633679,-500.0,0.00013996,2]
[352957074,1739460633695,-1362.09,0.00013996,2]
[352957075,1739460633704,-583.39435167,0.00013996,2]
[352957076,1739460633717,-265.89396875,0.00013996,2]
[352957077,1739460633729,-774.10167958,0.00013996,2]
[352957078,1739460633739,-500.0,0.00013996,2]
[352957079,1739460633748,-590.18,0.00013996,2]
[352957080,1739460633759,-562.9,0.00013996,2]
[352957081,1739460633769,-1451.24,0.00013996,2]
[352957082,1739460633779,-528.21,0.00013996,2]
[352957083,1739460633789,-500.0,0.00013996,2]
[352957084,1739460633799,-1134.39,0.00013996,2]
[352957085,1739460633808,-500.0,0.00013996,2]
[352957086,1739460633818,-1979.25,0.00013996,2]
[352957087,1739460633827,-1499.17,0.00013996,2]
[352957088,1739460633837,-912.17,0.00013996,2]
[352957089,1739460633846,-1952.6,0.00013996,2]
[352957090,1739460633855,-1837.67,0.00013996,2]
[352957091,1739460633864,-1129.01,0.00013996,2]
[352957092,1739460633874,-584.43,0.00013996,2]
[352957093,1739460633884,-500.0,0.00013996,2]
[352957094,1739460633893,-840.85,0.00013996,2]
[352957095,1739460633903,-717.09,0.00013996,2]
[352957096,1739460633912,-1085.73,0.00013996,2]
[352957097,1739460633922,-500.0,0.00013996,2]
[352957098,1739460633931,-844.9,0.00013996,2]
[352957099,1739460633942,-500.0,0.00013996,2]
[352957100,1739460633952,-923.710724,0.00013996,2]
[352957101,1739460633961,-500.0,0.00013996,2]
[352957102,1739460633971,-527.93,0.00013996,2]
[352957103,1739460633981,-2031.86805,0.00013996,2]
[352957104,1739460633990,-1423.46,0.00013996,2]
[352957105,1739460634000,-950.59,0.00013996,2]
[352957106,1739460634009,-159.716313,0.00013996,2]
[352957107,1739460634019,-499.997,0.00013996,2]
[352957108,1739460634028,-861.16,0.00013996,2]
[352957109,1739460634038,-340.70302566,0.00013996,2]
[352957110,1739460634048,-603.59,0.00013996,2]
[352957111,1739460634058,-500.0,0.00013996,2]
[352957112,1739460634068,-1185.19,0.00013996,2]
[352957113,1739460634077,-1648.91,0.00013996,2]
[352957114,1739460634087,-891.97,0.00013996,2]
[352957115,1739460634097,-500.0,0.00013996,2]
[352957116,1739460634107,-500.0,0.00013996,2]
[352957117,1739460634116,-1929.69,0.00013996,2]
[352957118,1739460634126,-500.0,0.00013996,2]
[352957119,1739460634136,-500.0,0.00013996,2]
[352957120,1739460634146,-500.0,0.00013996,2]
[352957121,1739460634156,-500.0,0.00013996,2]
[352957122,1739460634165,-500.0,0.00013996,2]
[352957123,1739460634175,-500.0,0.00013996,2]
[352957124,1739460634187,-589.4,0.00013996,2]
[352957125,1739460634196,-995.67,0.00013996,2]
[352957126,1739460634206,-500.0,0.00013996,2]
[352957127,1739460634216,-500.0,0.00013996,2]
[352957128,1739460634226,-948.89,0.00013996,2]
[352957129,1739460634236,-758.87,0.00013996,2]
[352957130,1739460634246,-1230.15,0.00013996,2]
[352957131,1739460634256,-1000.64,0.00013996,2]
[352957132,1739460634266,-500.0,0.00013996,2]
[352957133,1739460634276,-1872.27,0.00013996,2]
[352957134,1739460634286,-663.46,0.00013996,2]
[352957135,1739460634296,-797.91,0.00013996,2]
[352957136,1739460634306,-500.0,0.00013996,2]
[352957137,1739460634316,-500.0,0.00013996,2]
[352957138,1739460634326,-2079.45,0.00013996,2]
[352957139,1739460634336,-1437.73,0.00013996,2]
[352957140,1739460634346,-1183.96,0.00013996,2]
[352957141,1739460634357,-1854.85,0.00013996,2]
[352957142,1739460634367,-769.64,0.00013996,2]
[352957143,1739460634376,-1905.15,0.00013996,2]
[352957144,1739460634387,-500.0,0.00013996,2]
[352957145,1739460634397,-4119.57,0.00013996,2]
[352957146,1739460634407,-1104.53,0.00013996,2]
[352957147,1739460634417,-505.33264571,0.00013996,2]
[352957148,1739460634427,-3826.26,0.00013996,2]
[352957149,1739460634437,-3100.27,0.00013996,2]
[352957150,1739460634446,-500.0,0.00013996,2]
[352957151,1739460634456,-758.42,0.00013996,2]
[352957152,1739460634466,-500.0,0.00013996,2]
[352957153,1739460634476,-500.0,0.00013996,2]
[352957154,1739460634486,-2271.85,0.00013996,2]
[352957155,1739460634496,-500.0,0.00013996,2]
[352957156,1739460634506,-1819.76,0.00013996,2]
[352957157,1739460634515,-500.0,0.00013996,2]
[352957158,1739460634525,-2911.55,0.00013996,2]
[352957159,1739460634535,-2157.7,0.00013996,2]
[352957160,1739460634544,-3955.86,0.00013996,2]
[352957161,1739460634554,-652.15,0.00013996,2]
[352957162,1739460634564,-1930.33,0.00013996,2]
[352957163,1739460634574,-500.0,0.00013996,2]
[352957164,1739460634584,-811.75,0.00013996,2]
[352957165,1739460634593,-500.0,0.00013996,2]
[352957166,1739460634603,-1511.61,0.00013996,2]
[352957167,1739460634614,-1566.62,0.00013996,2]
[352957168,1739460634626,-1482.97,0.00013996,2]
[352957169,1739460634636,-3011.56,0.00013996,2]
[352957170,1739460634645,-2046.21,0.00013996,2]
[352957171,1739460634656,-1008.86,0.00013996,2]
[352957172,1739460634666,-1341.54,0.00013996,2]
[352957173,1739460634675,-500.0,0.00013996,2]
[352957174,1739460634687,-1345.73,0.00013996,2]
[352957175,1739460634699,-3157.87,0.00013996,2]
[352957176,1739460634709,-1075.5,0.00013996,2]
[352957177,1739460634718,-2833.64,0.00013996,2]
[352957178,1739460634728,-2705.22,0.00013996,2]
[352957179,1739460634738,-500.0,0.00013996,2]
[352957180,1739460634748,-617.61,0.00013996,2]
[352957181,1739460634758,-500.0,0.00013996,2]
[352957182,1739460634768,-1108.84,0.00013996,2]
[352957183,1739460634778,-500.0,0.00013996,2]
[352957184,1739460634789,-3392.02,0.00013996,2]
[352957185,1739460634799,-500.0,0.00013996,2]
[352957186,1739460634809,-1981.46,0.00013996,2]
[352957187,1739460634819,-3917.63,0.00013996,2]
[352957188,1739460634829,-3340.01,0.00013996,2]
[352957189,1739460634839,-500.0,0.00013996,2]
[352957190,1739460634848,-603.29,0.00013996,2]
[352957191,1739460634858,-2953.05,0.00013996,2]
[352957192,1739460634868,-3802.2,0.00013996,2]
[352957193,1739460634877,-471.1264259,0.00013996,2]
[352957194,1739460634887,-518.66056122,0.00013996,2]
[352957195,1739460634896,-1693.79073323,0.00013996,2]
[352957196,1739460634910,-1510.66926677,0.00013996,2]
[352957197,1739460634919,-3170.45,0.00013996,2]
[352957198,1739460634930,-1122.82,0.00013996,2]
[352957199,1739460634941,-500.0,0.00013996,2]
[352957200,1739460634951,-500.0,0.00013996,2]
[352957201,1739460634961,-2137.82,0.00013996,2]
[352957202,1739460634971,-2819.98,0.00013996,2]
[352957203,1739460634981,-9937.47,0.00013996,2]
[352957204,1739460634990,-500.0,0.00013996,2]
[352957205,1739460634999,-500.0,0.00013996,2]
[352957206,1739460635009,-5139.6,0.00013996,2]
[352957207,1739460635019,-500.0,0.00013996,2]
[352957208,1739460635038,-5027.54,0.00013996,2]
[352957209,1739460635050,-3480.88,0.00013996,2]
[352957210,1739460635061,-4107.98,0.00013996,2]
[352957211,1739460635071,-507.20914019,0.00013996,2]
[352957212,1739460635081,-2779.68,0.00013996,2]
[352957213,1739460635090,-500.0,0.00013996,2]
[352957214,1739460635100,-4303.7,0.00013996,2]
[352957215,1739460635110,-500.0,0.00013996,2]
[352957216,1739460635120,-1786.68,0.00013996,2]
[352957217,1739460635129,-500.0,0.00013996,2]
[352957218,1739460635139,-1606.29,0.00013996,2]
[352957219,1739460635150,-5076.71,0.00013996,2]
[352957220,1739460635160,-4143.42,0.00013996,2]
[352957221,1739460635170,-8384.8,0.00013996,2]
[352957222,1739460635180,-500.0,0.00013996,2]
[352957223,1739460635192,-500.0,0.00013996,2]
[352957224,1739460635202,-500.0,0.00013996,2]
[352957225,1739460635212,-5053.95,0.00013996,2]
[352957226,1739460635222,-500.0,0.00013996,2]
[352957227,1739460635232,-500.0,0.00013996,2]
[352957228,1739460635243,-2561.69,0.00013996,2]
[352957229,1739460635253,-3240.69,0.00013996,2]
[352957230,1739460635264,-500.0,0.00013996,2]
[352957231,1739460635274,-3516.77,0.00013996,2]
[352957232,1739460635284,-4237.08,0.00013996,2]
[352957233,1739460635294,-2443.09,0.00013996,2]
[352957234,1739460635304,-805.4,0.00013996,2]
[352957235,1739460635314,-522.73,0.00013996,2]
[352957236,1739460635324,-1880.58,0.00013996,2]
[352957237,1739460635529,-5210.2,0.00013996,2]
[352957238,1739460635540,-32176.28113804,0.00013997,2]
[352957239,1739460635553,-41365.22989566,0.00013997,2]
[352957240,1739460638465,-297.74536161,0.00013995,2]
[352957245,1739460638477,-202.25463839,0.00013995,2]
[352957247,1739460638486,-57.16556161,0.00013995,2]
[352957250,1739460638504,-442.83443839,0.00013995,2]
[352957251,1739460638514,-58.70634396,0.00013996,2]
[352957279,1739460640416,-441.29365604,0.00013996,2]
[352957280,1739460640426,-291.58296414,0.00013997,2]
[352957281,1739460640461,-65.72782275,0.00013997,2]
[352957298,1739460643272,-1006.60752325,0.00013997,2]
[352957310,1739460643853,-500.0,0.00013995,2]
[352957311,1739460643865,-419.40116331,0.00013996,2]
[352957312,1739460643877,-80.59883669,0.00013996,2]
[352957313,1739460643886,-867.13062331,0.00013997,2]
[352957568,1739460646666,-308.67146159,0.00013897,2]
[352957569,1739460646676,-500.0,0.00013995,2]
[352957571,1739460646686,-500.0,0.00013995,2]
[352957573,1739460646696,-3799.2,0.00013995,2]
[352957575,1739460646709,-500.0,0.00013996,2]
[352957577,1739460646718,-500.0,0.00013996,2]
[352957579,1739460646728,-500.0,0.00013996,2]
[352957581,1739460646738,-18327.9342013,0.00013997,2]
[352957583,1739460646748,-571.7,0.00013997,2]
[352957585,1739460646757,-647.24243988,0.00013997,2]
[352957587,1739460646766,-500.0,0.00013997,2]
[352957589,1739460646775,-500.0,0.00013997,2]
[352957591,1739460646785,-500.0,0.00013997,2]
[352957593,1739460646795,-500.0,0.00013997,2]
[352957595,1739460646804,-500.0,0.00013997,2]
[352957597,1739460646815,-671.22,0.00013997,2]
[352957599,1739460646824,-500.0,0.00013997,2]
[352957601,1739460646834,-633.11,0.00013997,2]
[352957603,1739460646844,-500.0,0.00013997,2]
[352957605,1739460646856,-500.0,0.00013997,2]
[352957607,1739460646865,-834.45,0.00013997,2]
[352957609,1739460646875,-500.0,0.00013997,2]
[352957611,1739460646885,-500.0,0.00013997,2]
[352957613,1739460646895,-500.0,0.00013997,2]
[352957615,1739460646904,-500.0,0.00013997,2]
[352957617,1739460646913,-500.0,0.00013997,2]
[352957619,1739460646923,-500.0,0.00013997,2]
[352957620,1739460646934,-896.62,0.00013997,2]
[352957623,1739460646943,-500.0,0.00013997,2]
[352957624,1739460646956,-500.0,0.00013997,2]
[352957626,1739460646966,-500.0,0.00013997,2]
[352957628,1739460646976,-500.0,0.00013997,2]
[352957630,1739460646985,-162.70457288,0.00013997,2]
[352957632,1739460646995,-500.0,0.00013997,2]
[352957634,1739460647004,-500.0,0.00013997,2]
[352957636,1739460647014,-500.0,0.00013997,2]
[352957638,1739460647024,-500.0,0.00013997,2]
[352957640,1739460647034,-500.0,0.00013997,2]
[352957642,1739460647043,-884.97,0.00013997,2]
[352957644,1739460647053,-291.09712822,0.00013997,2]
[352957646,1739460647063,-500.0,0.00013997,2]
[352957648,1739460647072,-500.0,0.00013997,2]
[352957650,1739460647082,-500.0,0.00013997,2]
[352957652,1739460647091,-920.29,0.00013997,2]
[352957654,1739460647101,-500.0,0.00013997,2]
[352957656,1739460647111,-500.0,0.00013997,2]
[352957658,1739460647120,-500.0,0.00013997,2]
[352957660,1739460647131,-217.27072053,0.00013997,2]
[352957662,1739460647140,-500.0,0.00013997,2]
[352957664,1739460647150,-500.0,0.00013997,2]
[352957666,1739460647160,-500.0,0.00013997,2]
[352957668,1739460647169,-500.0,0.00013997,2]
[352957670,1739460647179,-500.0,0.00013997,2]
[352957672,1739460647188,-500.0,0.00013997,2]
[352957674,1739460647202,-622.80806401,0.00013997,2]
[352957675,1739460647212,-500.0,0.00013997,2]
[352957677,1739460647222,-500.0,0.00013997,2]
[352957679,1739460647235,-500.0,0.00013997,2]
[352957682,1739460647250,-500.0,0.00013997,2]
[352957684,1739460647259,-711.66,0.00013997,2]
[352957685,1739460647269,-500.0,0.00013997,2]
[352957688,1739460647279,-500.0,0.00013997,2]
[352957689,1739460647289,-500.0,0.00013997,2]
[352957692,1739460647299,-500.0,0.00013997,2]
[352957693,1739460647308,-500.0,0.00013997,2]
[352957695,1739460647318,-842.65,0.00013997,2]
[352957697,1739460647328,-500.0,0.00013997,2]
[352957699,1739460647337,-500.0,0.00013997,2]
[352957701,1739460647347,-502.68395473,0.00013997,2]
[352957703,1739460647357,-500.0,0.00013997,2]
[352957705,1739460647366,-500.0,0.00013997,2]
[352957707,1739460647375,-405.57417346,0.00013997,2]
[352957709,1739460647384,-500.0,0.00013997,2]
[352957711,1739460647394,-500.0,0.00013997,2]
[352957713,1739460647404,-500.0,0.00013997,2]
[352957715,1739460647414,-500.0,0.00013997,2]
[352957717,1739460647424,-684.03,0.00013997,2]
[352957719,1739460647434,-500.0,0.00013997,2]
[352957721,1739460647446,-500.0,0.00013997,2]
[352957723,1739460647461,-500.0,0.00013997,2]
[352957725,1739460647471,-500.0,0.00013997,2]
[352957727,1739460647481,-500.0,0.00013997,2]
[352957729,1739460647491,-500.0,0.00013997,2]
[352957731,1739460647500,-500.0,0.00013997,2]
[352957733,1739460647510,-500.81072979,0.00013997,2]
[352957735,1739460647520,-500.0,0.00013997,2]
[352957737,1739460647530,-500.0,0.00013997,2]
[352957739,1739460647539,-535.12,0.00013997,2]
[352957741,1739460647549,-500.0,0.00013997,2]
[352957743,1739460647559,-500.0,0.00013997,2]
[352957745,1739460647568,-500.0,0.00013997,2]
[352957747,1739460647578,-500.0,0.00013997,2]
[352957749,1739460647587,-500.0,0.00013997,2]
[352957751,1739460647596,-500.0,0.00013997,2]
[352957753,1739460647606,-500.0,0.00013997,2]
[352957755,1739460647616,-500.0,0.00013997,2]
[352957757,1739460647630,-566.34,0.00013997,2]
[352957759,1739460647639,-500.0,0.00013997,2]
[352957761,1739460647649,-500.0,0.00013997,2]
[352957763,1739460647659,-500.0,0.00013997,2]
[352957765,1739460647671,-500.0,0.00013997,2]
[352957767,1739460647680,-500.0,0.00013997,2]
[352957768,1739460647689,-978.72,0.00013997,2]
[352957770,1739460647702,-522.97,0.00013997,2]
[352957772,1739460647711,-500.0,0.00013997,2]
[352957774,1739460647721,-500.0,0.00013997,2]
[352957776,1739460647731,-505.05866908,0.00013997,2]
[352957778,1739460647740,-500.0,0.00013997,2]
[352957780,1739460647750,-500.0,0.00013997,2]
[352957782,1739460647760,-757.63,0.00013997,2]
[352957784,1739460647770,-500.0,0.00013997,2]
[352957786,1739460647779,-500.0,0.00013997,2]
[352957788,1739460647789,-500.0,0.00013997,2]
[352957790,1739460647798,-500.0,0.00013997,2]
[352957792,1739460647808,-500.0,0.00013997,2]
[352957794,1739460647817,-500.0,0.00013997,2]
[352957796,1739460647827,-500.0,0.00013997,2]
[352957798,1739460647836,-500.0,0.00013997,2]
[352957800,1739460647845,-500.0,0.00013997,2]
[352957802,1739460647855,-500.0,0.00013997,2]
[352957804,1739460647864,-538.36,0.00013997,2]
[352957806,1739460647873,-500.0,0.00013997,2]
[352957808,1739460647883,-500.0,0.00013997,2]
[352957810,1739460647892,-2785.13,0.00013997,2]
[352957812,1739460647902,-500.0,0.00013997,2]
[352957813,1739460647911,-500.0,0.00013997,2]
[352957815,1739460647921,-500.0,0.00013997,2]
[352957817,1739460647930,-627.02,0.00013997,2]
[352957819,1739460647940,-500.0,0.00013997,2]
[352957821,1739460647951,-500.0,0.00013997,2]
[352957823,1739460647961,-2664.36,0.00013997,2]
[352957825,1739460647971,-500.0,0.00013997,2]
[352957827,1739460647981,-500.0,0.00013997,2]
[352957829,1739460647990,-500.0,0.00013997,2]
[352957831,1739460648000,-158.568017,0.00013997,2]
[352957832,1739460648010,-367.09463054,0.00013997,2]
[352957833,1739460648020,-500.0,0.00013997,2]
[352957834,1739460648030,-500.0,0.00013997,2]
[352957835,1739460648040,-500.0,0.00013997,2]
[352957836,1739460648050,-500.0,0.00013997,2]
[352957837,1739460648059,-500.0,0.00013997,2]
[352957838,1739460648069,-500.0,0.00013997,2]
[352957839,1739460648079,-500.0,0.00013997,2]
[352957840,1739460648089,-500.0,0.00013997,2]
[352957841,1739460648098,-500.0,0.00013997,2]
[352957842,1739460648108,-500.0,0.00013997,2]
[352957843,1739460648118,-500.0,0.00013997,2]
[352957845,1739460648128,-500.0,0.00013997,2]
[352957847,1739460648137,-500.0,0.00013997,2]
[352957849,1739460648147,-500.0,0.00013997,2]
[352957850,1739460648157,-500.0,0.00013997,2]
[352957852,1739460648168,-500.0,0.00013997,2]
[352957854,1739460648178,-500.0,0.00013997,2]
[352957856,1739460648188,-1328.94,0.00013997,2]
[352957858,1739460648198,-500.0,0.00013997,2]
[352957860,1739460648212,-500.0,0.00013997,2]
[352957862,1739460648222,-535.73,0.00013997,2]
[352957864,1739460648232,-500.0,0.00013997,2]
[352957866,1739460648242,-500.0,0.00013997,2]
[352957868,1739460648251,-1959.16,0.00013997,2]
[352957870,1739460648263,-500.0,0.00013997,2]
[352957872,1739460648275,-527.8,0.00013997,2]
[352957874,1739460648285,-500.0,0.00013997,2]
[352957876,1739460648296,-500.0,0.00013997,2]
[352957878,1739460648306,-1018.19,0.00013997,2]
[352957880,1739460648316,-658.4,0.00013997,2]
[352957882,1739460648326,-677.26,0.00013997,2]
[352957884,1739460648336,-500.0,0.00013997,2]
[352957886,1739460648346,-500.0,0.00013997,2]
[352957888,1739460648356,-557.65,0.00013997,2]
[352957890,1739460648366,-500.0,0.00013997,2]
[352957892,1739460648377,-500.0,0.00013997,2]
[352957894,1739460648388,-529.8988201,0.00013997,2]
[352957896,1739460648398,-227.2556036,0.00013997,2]
[352957898,1739460648408,-500.0,0.00013997,2]
[352957900,1739460648418,-500.0,0.00013997,2]
[352957901,1739460648427,-1806.93,0.00013997,2]
[352957903,1739460648438,-500.0,0.00013997,2]
[352957905,1739460648448,-500.0,0.00013997,2]
[352957907,1739460648462,-506.83626562,0.00013997,2]
[352957910,1739460648473,-500.0,0.00013997,2]
[352957912,1739460648484,-500.0,0.00013997,2]
[352957914,1739460648493,-500.0,0.00013997,2]
[352957916,1739460648504,-1317.61,0.00013997,2]
[352957918,1739460648514,-500.0,0.00013997,2]
[352957920,1739460648524,-500.0,0.00013997,2]
[352957921,1739460648534,-500.0,0.00013997,2]
[352957923,1739460648544,-500.0,0.00013997,2]
[352957925,1739460648554,-500.0,0.00013997,2]
[352957928,1739460648564,-500.0,0.00013997,2]
[352957930,1739460648574,-500.0,0.00013997,2]
[352957931,1739460648584,-500.0,0.00013997,2]
[352957934,1739460648594,-500.0,0.00013997,2]
[352957935,1739460648604,-500.0,0.00013997,2]
[352957937,1739460648615,-500.0,0.00013997,2]
[352957939,1739460648626,-2362.99,0.00013997,2]
[352957941,1739460648635,-970.33,0.00013997,2]
[352957943,1739460648644,-500.0,0.00013997,2]
[352957945,1739460648654,-500.0,0.00013997,2]
[352957947,1739460648665,-380.75216782,0.00013997,2]
[352957949,1739460648675,-717.31,0.00013997,2]
[352957950,1739460648685,-500.0,0.00013997,2]
[352957951,1739460648695,-597.2,0.00013997,2]
[352957953,1739460648708,-995.79,0.00013997,2]
[352957955,1739460648719,-251.02784357,0.00013997,2]
[352957956,1739460648729,-500.0,0.00013997,2]
[352957957,1739460648739,-828.87,0.00013997,2]
[352957958,1739460648750,-1625.58,0.00013997,2]
[352957959,1739460648760,-848.67,0.00013997,2]
[352957960,1739460648770,-1892.75,0.00013997,2]
[352957961,1739460648779,-718.78,0.00013997,2]
[352957962,1739460648789,-588.3,0.00013997,2]
[352957963,1739460648799,-1482.19,0.00013997,2]
[352957964,1739460648809,-500.0,0.00013997,2]
[352957965,1739460648819,-500.0,0.00013997,2]
[352957966,1739460648828,-500.0,0.00013997,2]
[352957967,1739460648838,-500.0,0.00013997,2]
[352957968,1739460648847,-1560.47,0.00013997,2]
[352957969,1739460648857,-500.0,0.00013997,2]
[352957970,1739460648867,-500.0,0.00013997,2]
[352957971,1739460648880,-500.0,0.00013997,2]
[352957972,1739460648890,-500.0,0.00013997,2]
[352957973,1739460648904,-510.94886379,0.00013997,2]
[352957974,1739460648914,-1214.28,0.00013997,2]
[352957975,1739460648924,-500.0,0.00013997,2]
[352957976,1739460648935,-500.0,0.00013997,2]
[352957977,1739460648944,-500.0,0.00013997,2]
[352957978,1739460648957,-500.0,0.00013997,2]
[352957979,1739460648968,-500.0,0.00013997,2]
[352957980,1739460648981,-535.3,0.00013997,2]
[352957981,1739460649002,-500.0,0.00013997,2]
[352957982,1739460649014,-500.0,0.00013997,2]
[352957983,1739460649024,-1777.78,0.00013997,2]
[352957984,1739460649034,-500.0,0.00013997,2]
[352957985,1739460649044,-500.0,0.00013997,2]
[352957986,1739460649053,-500.0,0.00013997,2]
[352957987,1739460649063,-914.66,0.00013997,2]
[352957988,1739460649073,-1105.24,0.00013997,2]
[352957989,1739460649083,-500.0,0.00013997,2]
[352957990,1739460649093,-1129.3,0.00013997,2]
[352957991,1739460649103,-500.0,0.00013997,2]
[352957992,1739460649312,-500.0,0.00013997,2]
[352957993,1739460649336,-500.0,0.00013997,2]
[352957994,1739460649346,-500.0,0.00013997,2]
[352957995,1739460649357,-500.0,0.00013997,2]
[352957996,1739460649367,-1204.04,0.00013997,2]
[352957997,1739460649377,-504.65143017,0.00013997,2]
[352957998,1739460649387,-1502.79,0.00013997,2]
[352957999,1739460649397,-599.69291174,0.00013997,2]
[352958000,1739460649407,-500.0,0.00013997,2]
[352958001,1739460649418,-500.0,0.00013997,2]
[352958002,1739460649440,-500.0,0.00013997,2]
[352958003,1739460649450,-850.84,0.00013997,2]
[352958004,1739460649468,-500.0,0.00013997,2]
[352958005,1739460649478,-500.0,0.00013997,2]
[352958006,1739460649488,-500.0,0.00013997,2]
[352958007,1739460649498,-827.38,0.00013997,2]
[352958008,1739460649509,-1604.27,0.00013997,2]
[352958009,1739460649519,-500.0,0.00013997,2]
[352958010,1739460649530,-500.0,0.00013997,2]
[352958011,1739460649540,-500.0,0.00013997,2]
[352958012,1739460649550,-687.25,0.00013997,2]
[352958013,1739460649559,-917.62,0.00013997,2]
[352958014,1739460649569,-1247.44,0.00013997,2]
[352958015,1739460649579,-1214.13,0.00013997,2]
[352958016,1739460649589,-500.0,0.00013997,2]
[352958017,1739460649599,-509.83277624,0.00013997,2]
[352958018,1739460649609,-500.0,0.00013997,2]
[352958019,1739460649625,-500.0,0.00013997,2]
[352958020,1739460649634,-500.0,0.00013997,2]
[352958021,1739460649644,-500.0,0.00013997,2]
[352958022,1739460649654,-500.0,0.00013997,2]
[352958023,1739460649663,-1699.01,0.00013997,2]
[352958024,1739460649673,-500.0,0.00013997,2]
[352958025,1739460649683,-500.0,0.00013997,2]
[352958026,1739460649693,-505.71,0.00013997,2]
[352958027,1739460649706,-500.0,0.00013997,2]
[352958028,1739460649715,-500.0,0.00013997,2]
[352958029,1739460649725,-905.47,0.00013997,2]
[352958030,1739460649735,-500.0,0.00013997,2]
[352958031,1739460649744,-1437.04,0.00013997,2]
[352958032,1739460649753,-500.0,0.00013997,2]
[352958033,1739460649763,-500.0,0.00013997,2]
[352958034,1739460649773,-1200.0,0.00013997,2]
[352958035,1739460649782,-500.0,0.00013997,2]
[352958036,1739460649792,-1156.67,0.00013997,2]
[352958037,1739460649801,-500.0,0.00013997,2]
[352958038,1739460649810,-502.03344435,0.00013997,2]
[352958039,1739460649820,-701.05,0.00013997,2]
[352958040,1739460649830,-500.0,0.00013997,2]
[352958041,1739460649839,-500.0,0.00013997,2]
[352958042,1739460649849,-500.0,0.00013997,2]
[352958043,1739460649858,-2257.27,0.00013997,2]
[352958044,1739460649867,-975.68,0.00013997,2]
[352958045,1739460649877,-500.0,0.00013997,2]
[352958046,1739460649887,-500.0,0.00013997,2]
[352958047,1739460649896,-1495.45,0.00013997,2]
[352958048,1739460649906,-500.0,0.00013997,2]
[352958049,1739460649916,-500.0,0.00013997,2]